fUSD/lending_fUSD_20260627
["ID","MTS","AMOUNT","RATE_DAILY","PERIOD"]
[426524460,1782533761000,-151.0,0.00014024,2]
[426524461,1782533761000,-151.0,0.00014024,2]
[426524458,1782533761000,-150.0,0.00014013,2]
[426524463,1782533774000,-150.0,0.00014151,2]
[426524464,1782533774000,-327.98,0.00014205,2]
[426524465,1782533774000,-348.1,0.00014249,2]
[426524466,1782533774000,-500.0,0.00014499,2]
[426524467,1782533782000,-5000.0,0.00014597,2]
[426524474,1782533792000,-3094.26110203,0.000149,2]
[426524473,1782533792000,-150.0,0.00014899,2]
[426524471,1782533792000,-500.0,0.00014764,2]
[426524472,1782533792000,-318.43217535,0.00014764,2]
[426524470,1782533792000,-348.1,0.00014749,2]
[426524469,1782533792000,-327.98,0.00014671,2]
[426524468,1782533792000,-261.22672262,0.00014601,2]
[426524475,1782533802000,-164.09262652,0.00013,14]
[426524476,1782533896000,500.0,0.00037283,120]
[426524477,1782533897000,500.0,0.00037283,120]
[426524479,1782533897000,500.0,0.00037283,120]
[426524478,1782533897000,500.0,0.00037283,120]
[426524481,1782533898000,500.3,0.00037283,120]
[426524480,1782533898000,500.0,0.00037283,120]
[426524482,1782533906000,150.0,0.00014895,120]
[426524487,1782533991000,-1610.50641435,0.00014864,2]
[426524485,1782533991000,-150.0,0.00014858,2]
[426524486,1782533991000,-250.0,0.00014863,2]
[426524484,1782533991000,-533.62668365,0.00014853,2]
[426524483,1782533991000,-2455.866902,0.00014778,2]
[426524492,1782533996000,-4554.44631638,0.000149,2]
[426524491,1782533996000,-98.03009797,0.000149,2]
[426524490,1782533996000,-150.0,0.00014899,2]
[426524489,1782533996000,-150.0,0.00014895,2]
[426524488,1782533996000,-47.52358565,0.00014864,2]
[426524493,1782534001000,-5000.0,0.000149,2]
[426524494,1782534002000,-5000.0,0.000149,2]
[426524495,1782534004000,-2195.5223,0.000149,2]
[426524496,1782534004000,-2804.4777,0.000149,2]
[426524500,1782534011000,-1346.56955672,0.00014937,2]
[426524498,1782534011000,-200.44764682,0.00014916,2]
[426524499,1782534011000,-250.0,0.00014933,2]
[426524497,1782534011000,-3202.98279646,0.000149,2]
[426524503,1782534016000,-3984.58079175,0.00014937,2]
[426524502,1782534016000,-332.87186526,0.00014908,2]
[426524501,1782534016000,-682.54734299,0.000149,2]
[426524504,1782534017000,-5000.0,0.00014937,2]
[426524506,1782534022000,-164.97,0.00014941,2]
[426524507,1782534022000,-1267.268693,0.00014998,2]
[426524505,1782534022000,-2479.74355313,0.00014937,2]
[426524509,1782534022000,-500.0,0.00014999,2]
[426524510,1782534022000,-88.01775387,0.00014999,2]
[426524508,1782534022000,-500.0,0.00014999,2]
[426524512,1782534023000,-500.0,0.00014999,2]
[426524511,1782534023000,-411.98224613,0.00014999,2]
[426524515,1782534023000,-500.0,0.00014999,2]
[426524513,1782534023000,-500.0,0.00014999,2]
[426524516,1782534023000,-612.78689878,0.00014999,2]
[426524518,1782534023000,-500.0,0.00014999,2]
[426524519,1782534023000,-227.07439601,0.00014999,2]
[426524517,1782534023000,-500.0,0.00014999,2]
[426524514,1782534023000,-264.64256155,0.00014999,2]
[426524521,1782534024000,-483.51389753,0.00014999,2]
[426524520,1782534024000,-500.0,0.00014999,2]
[426524523,1782534321000,-166.66,0.00014615,2]
[426524522,1782534321000,-166.66,0.00014313,2]
[426524524,1782534321000,-151.0,0.00014737,2]
[426524525,1782534321000,-151.0,0.00014737,2]
[426524527,1782534321000,-150.0,0.00014886,2]
[426524528,1782534321000,-5468.2582,0.000149,2]
[426524526,1782534321000,-15711.9406919,0.00014873,2]
[426524529,1782534333000,12746.4218,0.000149,2]
[426524530,1782534408000,-588.6710385,0.000149,2]
[426524531,1782534410000,-5000.0,0.000149,2]
[426524532,1782534411000,-5000.0,0.000149,2]
[426524534,1782534412000,-5000.0,0.000149,2]
[426524533,1782534412000,-5000.0,0.000149,2]
[426524535,1782534413000,-5000.0,0.000149,2]
[426524536,1782534414000,-5000.0,0.000149,2]
[426524538,1782534415000,-166.66,0.00014916,2]
[426524539,1782534415000,-3336.9217385,0.00014933,2]
[426524537,1782534415000,-1496.4182615,0.000149,2]
[426524547,1782534417000,-595.27897703,0.00014999,2]
[426524548,1782534417000,-48.12873225,0.00014999,2]
[426524546,1782534417000,-500.0,0.00014999,2]
[426524545,1782534417000,-500.0,0.00014999,2]
[426524544,1782534417000,-16.48610247,0.00014999,2]
[426524542,1782534417000,-165.18892211,0.0001497,2]
[426524543,1782534417000,-150.0,0.00014998,2]
[426524541,1782534417000,-955.12455788,0.00014933,2]
[426524540,1782534417000,-2069.79270826,0.00014933,2]
[426524550,1782534418000,-500.0,0.00014999,2]
[426524551,1782534418000,-500.0,0.00014999,2]
[426524552,1782534418000,-779.98,0.00014999,2]
[426524549,1782534418000,-451.87126775,0.00014999,2]
[426524554,1782534418000,-760.87,0.00014999,2]
[426524556,1782534418000,-466.42873225,0.00014999,2]
[426524553,1782534418000,-779.98,0.00014999,2]
[426524555,1782534418000,-760.87,0.00014999,2]
[426524557,1782534419000,-5000.0,0.00014999,2]
[426524565,1782534429000,-250.0,0.00015,2]
[426524566,1782534429000,-658.42640354,0.00015,2]
[426524564,1782534429000,-150.0,0.00014999,2]
[426524563,1782534429000,-500.0,0.00014999,2]
[426524562,1782534429000,-500.0,0.00014999,2]
[426524561,1782534429000,-248.0,0.00014999,2]
[426524559,1782534429000,-1178.00238394,0.00014999,2]
[426524560,1782534429000,-1155.58666498,0.00014999,2]
[426524558,1782534429000,-359.98454754,0.00014999,2]
[426524567,1782534430000,-5000.0,0.00015,2]
[426524568,1782534431000,-5000.0,0.00015,2]
[426524569,1782534431000,-5000.0,0.00015,2]
[426524570,1782534432000,-5000.0,0.00015,2]
[426524578,1782534433000,-1500.0,0.00015,2]
[426524576,1782534433000,-500.0,0.00014999,2]
[426524577,1782534433000,-500.0,0.00014999,2]
[426524575,1782534433000,-500.0,0.00014999,2]
[426524574,1782534433000,-500.0,0.00014999,2]
[426524573,1782534433000,-500.0,0.00014999,2]
[426524572,1782534433000,-500.0,0.00014999,2]
[426524571,1782534433000,-500.0,0.00014999,2]
[426524580,1782534434000,-500.0,0.00014999,2]
[426524581,1782534434000,-500.0,0.00014999,2]
[426524579,1782534434000,-500.0,0.00014999,2]
[426524582,1782534434000,-500.0,0.00014999,2]
[426524584,1782534434000,-500.0,0.00014999,2]
[426524585,1782534434000,-500.0,0.00014999,2]
[426524583,1782534434000,-500.0,0.00014999,2]
[426524595,1782534435000,-219.60603121,0.00014999,2]
[426524596,1782534435000,-500.0,0.00014999,2]
[426524594,1782534435000,-500.0,0.00014999,2]
[426524593,1782534435000,-500.0,0.00014999,2]
[426524592,1782534435000,-500.0,0.00014999,2]
[426524591,1782534435000,-500.0,0.00014999,2]
[426524590,1782534435000,-500.0,0.00014999,2]
[426524589,1782534435000,-500.0,0.00014999,2]
[426524588,1782534435000,-500.0,0.00014999,2]
[426524586,1782534435000,-500.0,0.00014999,2]
[426524587,1782534435000,-500.0,0.00014999,2]
[426524597,1782534436000,-500.0,0.00014999,2]
[426524599,1782534436000,-280.39396879,0.00015,2]
[426524600,1782534436000,-5000.0,0.00015,2]
[426524598,1782534436000,-500.0,0.00014999,2]
[426524601,1782534437000,-5000.0,0.00015,2]
[426524609,1782534464000,-1500.0,0.00015,2]
[426524608,1782534464000,-500.0,0.00014999,2]
[426524607,1782534464000,-500.0,0.00014999,2]
[426524606,1782534464000,-500.0,0.00014999,2]
[426524603,1782534464000,-500.0,0.00014999,2]
[426524604,1782534464000,-500.0,0.00014999,2]
[426524605,1782534464000,-500.0,0.00014999,2]
[426524602,1782534464000,-500.0,0.00014999,2]
[426524611,1782534486000,-4373.42600102,0.00015,2]
[426524610,1782534486000,-626.57399898,0.00014999,2]
[426524612,1782534547000,-501.98147291,0.00014999,2]
[426524614,1782534547000,-550.56137969,0.00014999,2]
[426524615,1782534547000,-160.0,0.00014999,2]
[426524616,1782534547000,-3287.4571474,0.00015,2]
[426524613,1782534547000,-500.0,0.00014999,2]
[426524619,1782534631000,-175.09,0.00014134,2]
[426524660,1782534632000,-200.0,0.00016499,2]
[426524661,1782534632000,-250.0,0.00016499,2]
[426524656,1782534632000,-299.3183325,0.00016438,2]
[426524654,1782534632000,-500.0,0.00016438,2]
[426524650,1782534632000,-255.0,0.00016124,2]
[426524658,1782534632000,-600.0,0.00016499,2]
[426524651,1782534632000,-500.0,0.00016438,2]
[426524657,1782534632000,-300.0,0.00016499,2]
[426524652,1782534632000,-500.0,0.00016438,2]
[426524653,1782534632000,-500.0,0.00016438,2]
[426524659,1782534632000,-256.10668052,0.00016499,2]
[426524655,1782534632000,-500.0,0.00016438,2]
[426524662,1782534632000,-300.1513056,0.00016499,2]
[426524664,1782534632000,-279.81166212,0.00016499,2]
[426524665,1782534632000,-200.0,0.00016499,2]
[426524668,1782534632000,-606.67372787,0.000165,2]
[426524667,1782534632000,-2410.95052561,0.000165,2]
[426524666,1782534632000,-300.0,0.000165,2]
[426524670,1782534632000,-164.66,0.00016532,2]
[426524669,1782534632000,-195.8106383,0.000165,2]
[426524671,1782534632000,-544.25817603,0.00016659,2]
[426524673,1782534632000,-151.95,0.00016712,2]
[426524672,1782534632000,-579.89533053,0.00016663,2]
[426524674,1782534632000,-579.89533053,0.00016732,2]
[426524676,1782534632000,-579.89533053,0.00016881,2]
[426524675,1782534632000,-659.46129961,0.00016734,2]
[426524663,1782534632000,-500.0,0.00016499,2]
[426524647,1782534632000,-200.0,0.00015609,2]
[426524649,1782534632000,-204.0,0.00016,2]
[426524644,1782534632000,-300.0,0.00015547,2]
[426524620,1782534632000,-500.0,0.00014999,2]
[426524621,1782534632000,-150.0,0.00014999,2]
[426524622,1782534632000,-756.65,0.00014999,2]
[426524624,1782534632000,-500.0,0.00014999,2]
[426524623,1782534632000,-500.0,0.00014999,2]
[426524625,1782534632000,-500.0,0.00014999,2]
[426524626,1782534632000,-246205.97924381,0.00015,2]
[426524628,1782534632000,-200.0,0.00015,2]
[426524629,1782534632000,-150.0,0.00015017,2]
[426524627,1782534632000,-1000.0,0.00015,2]
[426524630,1782534632000,-150.0,0.00015033,2]
[426524632,1782534632000,-1914.92,0.00015092,2]
[426524648,1782534632000,-166.66,0.0001582,2]
[426524633,1782534632000,-313.8,0.00015126,2]
[426524635,1782534632000,-313.8,0.00015203,2]
[426524636,1782534632000,-166.66,0.00015217,2]
[426524634,1782534632000,-200.0,0.0001515,2]
[426524637,1782534632000,-160.0,0.00015226,2]
[426524638,1782534632000,-348.1,0.00015249,2]
[426524645,1782534632000,-600.0,0.00015547,2]
[426524643,1782534632000,-166.66,0.00015519,2]
[426524639,1782534632000,-313.8,0.0001528,2]
[426524641,1782534632000,-200.0,0.00015301,2]
[426524642,1782534632000,-200.0,0.00015455,2]
[426524640,1782534632000,-160.0,0.00015285,2]
[426524646,1782534632000,-250.0,0.00015547,2]
[426524631,1782534632000,-313.8,0.00015048,2]
[426524680,1782534632000,-500.80717316,0.00017976,2]
[426524679,1782534632000,-835.73398818,0.00017939,2]
[426524682,1782534632000,-200.0,0.00018223,2]
[426524713,1782534632000,-9660.64182219,0.000219,2]
[426524716,1782534632000,-151.0,0.00022,2]
[426524717,1782534632000,-151.0,0.00022,2]
[426524715,1782534632000,-151.0,0.00022,2]
[426524714,1782534632000,-5000.0,0.00021918,2]
[426524720,1782534632000,-151.0,0.00022,2]
[426524718,1782534632000,-151.0,0.00022,2]
[426524719,1782534632000,-151.0,0.00022,2]
[426524722,1782534632000,-151.0,0.00022,2]
[426524721,1782534632000,-151.0,0.00022,2]
[426524723,1782534632000,-151.0,0.00022,2]
[426524724,1782534632000,-151.0,0.00022,2]
[426524725,1782534632000,-151.0,0.00022,2]
[426524728,1782534632000,-151.0,0.00022,2]
[426524726,1782534632000,-151.0,0.00022,2]
[426524727,1782534632000,-151.0,0.00022,2]
[426524730,1782534632000,-154.76459868,0.00022,2]
[426524729,1782534632000,-151.0,0.00022,2]
[426524731,1782534632000,-801.59129668,0.00022292,2]
[426524732,1782534632000,-600.28,0.00022466,2]
[426524734,1782534632000,-172.87325687,0.00022561,2]
[426524733,1782534632000,-332.39,0.00022466,2]
[426524735,1782534632000,-500.0,0.00022561,2]
[426524737,1782534632000,-500.0,0.00022561,2]
[426524736,1782534632000,-200.19588784,0.00022561,2]
[426524739,1782534632000,-307.44461966,0.00022561,2]
[426524677,1782534632000,-36974.60446982,0.00017263,2]
[426524711,1782534632000,-214.19,0.0002154,2]
[426524712,1782534632000,-475.24958062,0.00021749,2]
[426524738,1782534632000,-197.1514445,0.00022561,2]
[426524708,1782534632000,-2114.65573881,0.00021284,2]
[426524710,1782534632000,-176.97799874,0.00021485,2]
[426524681,1782534632000,-1943.34,0.00018039,2]
[426524684,1782534632000,-165.47,0.00018318,2]
[426524685,1782534632000,-83646.24,0.00018328,2]
[426524683,1782534632000,-665.44,0.00018254,2]
[426524687,1782534632000,-1943.34,0.0001849,2]
[426524686,1782534632000,-214.19,0.00018463,2]
[426524688,1782534632000,-1852.42,0.00018714,2]
[426524689,1782534632000,-1188.23,0.0001872,2]
[426524694,1782534632000,-214.19,0.00019489,2]
[426524691,1782534632000,-500.0,0.00018781,2]
[426524693,1782534632000,-1943.34,0.00019392,2]
[426524692,1782534632000,-1943.34,0.00018941,2]
[426524690,1782534632000,-200.0,0.00018757,2]
[426524678,1782534632000,-200.0,0.00017339,2]
[426524696,1782534632000,-1943.34,0.00019843,2]
[426524707,1782534632000,-647.52,0.00021273,2]
[426524709,1782534632000,-152.0,0.00021485,2]
[426524706,1782534632000,-1914.92,0.00021129,2]
[426524705,1782534632000,-163.36,0.0002106,2]
[426524695,1782534632000,-1538.12,0.00019721,2]
[426524702,1782534632000,-665.44,0.00020536,2]
[426524704,1782534632000,-345.69,0.00020944,2]
[426524699,1782534632000,-228.60935438,0.00020017,2]
[426524703,1782534632000,-835.73398813,0.00020678,2]
[426524700,1782534632000,-971.02979188,0.00020374,2]
[426524698,1782534632000,-174.09,0.00019969,2]
[426524697,1782534632000,-2575.81,0.00019969,2]
[426524701,1782534632000,-214.19,0.00020514,2]
[426524781,1782534633000,-151.0,0.00024171,7]
[426524778,1782534633000,-500.0,0.00023899,2]
[426524780,1782534633000,-3920.11367863,0.000239,2]
[426524779,1782534633000,-500.0,0.00023899,2]
[426524772,1782534633000,-431.36,0.000237,2]
[426524782,1782534633000,-3920.11367863,0.000242,2]
[426524775,1782534633000,-760.87,0.00023899,2]
[426524774,1782534633000,-500.0,0.00023899,2]
[426524777,1782534633000,-500.0,0.00023899,2]
[426524771,1782534633000,-214.19,0.00023592,2]
[426524773,1782534633000,-3920.11367863,0.000237,2]
[426524784,1782534633000,-3920.11367863,0.000244,2]
[426524791,1782534633000,-356.07914589,0.00024882,7]
[426524785,1782534633000,-163.36,0.0002457,2]
[426524786,1782534633000,-214.19,0.00024617,2]
[426524787,1782534633000,-177.23,0.00024658,2]
[426524789,1782534633000,-180.25,0.00024658,2]
[426524792,1782534633000,-3920.11367863,0.000249,2]
[426524795,1782534633000,-9660.64182218,0.00025281,2]
[426524788,1782534633000,-179.95,0.00024658,2]
[426524790,1782534633000,-3920.11367863,0.000247,2]
[426524793,1782534633000,-174.09,0.00024961,120]
[426524794,1782534633000,-665.44,0.00025099,2]
[426524769,1782534633000,-345.69,0.00023562,2]
[426524797,1782534633000,-500.0,0.00025799,2]
[426524783,1782534633000,-36109.35567365,0.000244,2]
[426524770,1782534633000,-9660.64182218,0.00023591,2]
[426524751,1782534633000,-177.22907949,0.00022767,2]
[426524768,1782534633000,-3920.11367863,0.000235,2]
[426524798,1782534633000,-66764.54743822,0.000258,2]
[426524741,1782534633000,-500.0,0.00022561,2]
[426524740,1782534633000,-191.09551609,0.00022561,2]
[426524743,1782534633000,-5000.0,0.00022562,2]
[426524742,1782534633000,-9999.99,0.00022562,2]
[426524745,1782534633000,-19520.46,0.00022562,2]
[426524744,1782534633000,-150.99,0.00022562,2]
[426524746,1782534633000,-204.84,0.00022562,2]
[426524747,1782534633000,-5230.49,0.00022562,2]
[426524752,1782534633000,-211.91966717,0.000228,2]
[426524754,1782534633000,-3920.11367863,0.000228,2]
[426524753,1782534633000,-431.36,0.000228,2]
[426524767,1782534633000,-431.36,0.000235,2]
[426524748,1782534633000,-514.42,0.00022562,2]
[426524749,1782534633000,-4728.34,0.00022562,2]
[426524755,1782534633000,-665.44,0.00022817,2]
[426524757,1782534633000,-431.36,0.00023,2]
[426524756,1782534633000,-211.91966717,0.00023,2]
[426524758,1782534633000,-3920.11367863,0.00023,2]
[426524759,1782534633000,-166.97,0.0002306,2]
[426524764,1782534633000,-4306.32132508,0.00023368,2]
[426524761,1782534633000,-3920.11367863,0.000232,2]
[426524763,1782534633000,-3372.69867492,0.00023368,2]
[426524760,1782534633000,-431.36,0.000232,2]
[426524765,1782534633000,-835.73398813,0.00023418,2]
[426524766,1782534633000,-756.65,0.00023499,2]
[426524750,1782534633000,-214.19,0.00022566,2]
[426524800,1782534633000,-345.69,0.0002618,120]
[426524796,1782534633000,-214.19,0.00025643,2]
[426524801,1782534633000,-90.37882877,0.00026382,14]
[426524831,1782534633000,-500.0,0.00029119,120]
[426524833,1782534633000,-500.0,0.00029119,120]
[426524837,1782534633000,-760.87,0.00029709,7]
[426524835,1782534633000,-159.04075914,0.00029644,30]
[426524836,1782534633000,-162.0,0.00029644,30]
[426524839,1782534633000,-3505.8078428,0.00029894,2]
[426524842,1782534633000,-2025.00410975,0.0003,10]
[426524844,1782534633000,-558.39,0.00030005,2]
[426524840,1782534633000,-174.09,0.00029954,120]
[426524843,1782534633000,-153.15647526,0.0003,30]
[426524841,1782534633000,-8974.99589025,0.0003,10]
[426524845,1782534633000,-2858.4968079,0.00030022,2]
[426524834,1782534633000,-6237.0,0.0002912,20]
[426524846,1782534633000,-6237.0,0.0003008,20]
[426524849,1782534633000,-4112.9992442,0.00030121,2]
[426524848,1782534633000,-31886.35279341,0.000301,7]
[426524853,1782534633000,-482.05597389,0.0003013,2]
[426524852,1782534633000,-206.3165088,0.0003013,2]
[426524850,1782534633000,-1098.61121708,0.0003013,2]
[426524851,1782534633000,-648.77932208,0.0003013,2]
[426524854,1782534633000,-303.63503964,0.0003013,2]
[426524858,1782534633000,-1811.717,0.00030572,26]
[426524856,1782534633000,-9660.64182218,0.00030353,2]
[426524857,1782534633000,-239.797,0.00030572,26]
[426524855,1782534633000,-1925.51063843,0.0003013,2]
[426524799,1782534633000,-835.73398813,0.00026157,2]
[426524847,1782534633000,-756.65,0.00030099,7]
[426524830,1782534633000,-500.0,0.00029119,7]
[426524838,1782534633000,-5406.71444674,0.00029721,2]
[426524827,1782534633000,-179.95,0.00028867,7]
[426524802,1782534633000,-849.31967095,0.00026382,14]
[426524803,1782534633000,-1657.73953952,0.00026382,14]
[426524804,1782534633000,-2479.87920824,0.00026382,14]
[426524807,1782534633000,-9660.64182218,0.00026972,2]
[426524832,1782534633000,-202.11513676,0.00029119,14]
[426524806,1782534633000,-214.19,0.00026669,2]
[426524808,1782534633000,-381.0,0.000273,15]
[426524809,1782534633000,-665.44,0.00027381,2]
[426524810,1782534633000,-4524.62,0.00027397,10]
[426524811,1782534633000,-500.0,0.000275,7]
[426524812,1782534633000,-214.19,0.00027694,2]
[426524815,1782534633000,-177.23,0.0002831,2]
[426524814,1782534633000,-163.36,0.0002808,2]
[426524819,1782534633000,-151.0,0.00028644,30]
[426524805,1782534633000,-3355.3575,0.00026382,14]
[426524817,1782534633000,-168.77700663,0.00028642,30]
[426524829,1782534633000,-835.73398813,0.00028897,2]
[426524820,1782534633000,-155.63767268,0.00028644,30]
[426524828,1782534633000,-180.25,0.00028867,7]
[426524823,1782534633000,-9660.64182218,0.00028662,2]
[426524825,1782534633000,-368.0,0.00028786,5]
[426524824,1782534633000,-356.0,0.00028786,5]
[426524826,1782534633000,-345.69,0.00028798,120]
[426524818,1782534633000,-168.72622451,0.00028644,30]
[426524813,1782534633000,-153.07175421,0.00028,120]
[426524816,1782534633000,-1188.23,0.00028364,7]
[426524821,1782534633000,-164.23714184,0.00028644,30]
[426524822,1782534633000,-162.0,0.00028644,30]
[426524877,1782534634000,-519.3,0.00031691,30]
[426524873,1782534634000,-200.59593501,0.00031507,7]
[426524875,1782534634000,-835.73398813,0.00031636,2]
[426524872,1782534634000,-200.59593501,0.00031506,7]
[426524869,1782534634000,-1000.0,0.00031,7]
[426524874,1782534634000,-163.36,0.0003159,2]
[426524871,1782534634000,-345.69,0.00031416,120]
[426524876,1782534634000,-162.0,0.00031644,30]
[426524868,1782534634000,-3500.0,0.00031,2]
[426524860,1782534634000,-676.0,0.00030577,5]
[426524867,1782534634000,-500.0,0.00030938,2]
[426524865,1782534634000,-677.0,0.00030577,5]
[426524866,1782534634000,-162.0,0.00030644,30]
[426524864,1782534634000,-667.0,0.00030577,5]
[426524861,1782534634000,-688.0,0.00030577,5]
[426524863,1782534634000,-680.0,0.00030577,5]
[426524862,1782534634000,-675.0,0.00030577,5]
[426524859,1782534634000,-674.0,0.00030577,5]
[426524878,1782534634000,-673.0,0.00031886,5]
[426524870,1782534634000,-6237.0,0.0003104,20]
[426524879,1782534634000,-177.23,0.00031963,2]
[426524899,1782534634000,-2008.0,0.000336,7]
[426524883,1782534634000,-9660.64182218,0.00032043,2]
[426524902,1782534634000,-1254.41808677,0.00033734,2]
[426524898,1782534634000,-345.56049827,0.00033565,2]
[426524896,1782534634000,-250.0,0.00033555,7]
[426524897,1782534634000,-1500.0,0.00033559,10]
[426524901,1782534634000,-3666.97111274,0.00033734,2]
[426524900,1782534634000,-169.0,0.00033644,30]
[426524895,1782534634000,-917.73418,0.00033498,2]
[426524894,1782534634000,-637.8168505,0.00033388,2]
[426524893,1782534634000,-782.2514654,0.00033245,2]
[426524891,1782534634000,-157.47,0.00033,30]
[426524890,1782534634000,-6237.0,0.0003296,20]
[426524884,1782534634000,-5406.71444674,0.00032186,2]
[426524886,1782534634000,-152.0,0.00032272,3]
[426524889,1782534634000,-251.68,0.00032877,2]
[426524888,1782534634000,-2270.1130207,0.00032798,2]
[426524887,1782534634000,-162.0,0.00032644,30]
[426524885,1782534634000,-647.52,0.00032232,7]
[426524881,1782534634000,-6237.0,0.00032,20]
[426524882,1782534634000,-3500.0,0.00032,2]
[426524892,1782534634000,-206.92228552,0.00033,30]
[426524880,1782534634000,-220.75913406,0.00032,10]
[426524906,1782534637000,-544.25817603,0.0001694,2]
[426524908,1782534637000,-594.87682397,0.00027397,10]
[426524907,1782534637000,-180.32,0.00024658,2]
[426524912,1782534638000,-5632.54590985,0.00033844,2]
[426524913,1782534638000,-568.13833919,0.00033844,2]
[426524910,1782534638000,-4739.25262267,0.00033734,2]
[426524909,1782534638000,-8033.26317603,0.00027397,10]
[426524911,1782534638000,-1041.05431511,0.00033844,2]
[426524982,1782534639000,-544.25817603,0.00016716,2]
[426524983,1782534639000,-171.30474315,0.00033844,2]
[426524987,1782534646000,-500.0,0.00014999,2]
[426524988,1782534646000,-211.35336034,0.00023499,2]
[426524986,1782534646000,-656.8,0.00014999,2]
[426524989,1782534646000,-65.40789317,0.00023499,2]
[426525002,1782534646000,-380.03874649,0.00023499,2]
[426525005,1782534646000,-656.4159294,0.00030099,7]
[426525003,1782534646000,-516.82532411,0.00029,2]
[426525021,1782534829000,-4404.44,0.000149,2]
[426525020,1782534829000,-329.56,0.00014249,2]
[426525024,1782534982000,167.43849225,0.00037287,120]
[426525023,1782534982000,167.43849225,0.00037287,120]
[426525026,1782534984000,167.43849225,0.00037287,120]
[426525025,1782534984000,167.43849225,0.00037287,120]
[426525027,1782534985000,167.43849225,0.00037287,120]
[426525028,1782534986000,167.43849228,0.00037287,120]
[426525031,1782535015000,543.93,0.00037287,120]
[426525029,1782535015000,543.93,0.00037287,120]
[426525032,1782535015000,543.93,0.00037287,120]
[426525030,1782535015000,543.93,0.00037287,120]
[426525035,1782535016000,543.93,0.00037287,120]
[426525034,1782535016000,543.93,0.00037287,120]
[426525033,1782535016000,543.93,0.00037287,120]
[426525037,1782535017000,543.93,0.00037287,120]
[426525036,1782535017000,543.93,0.00037287,120]
[426525040,1782535018000,543.93,0.00037287,120]
[426525039,1782535018000,543.93,0.00037287,120]
[426525038,1782535018000,543.93,0.00037287,120]
[426525043,1782535019000,543.93,0.00037287,120]
[426525042,1782535019000,543.93,0.00037287,120]
[426525041,1782535019000,543.93,0.00037287,120]
[426525044,1782535020000,543.93,0.00037287,120]
[426525045,1782535020000,543.93,0.00037287,120]
[426525046,1782535020000,543.93,0.00037287,120]
[426525049,1782535021000,543.93,0.00037287,120]
[426525048,1782535021000,543.93,0.00037287,120]
[426525047,1782535021000,543.93,0.00037287,120]
[426525052,1782535022000,543.97624536,0.00037287,120]
[426525051,1782535022000,543.93,0.00037287,120]
[426525050,1782535022000,543.93,0.00037287,120]
[426525053,1782535713000,510.3837499,0.00037285,120]
[426525054,1782535766000,-949.07894281,0.000141,2]
[426525055,1782535766000,-617.73729943,0.000141,2]
[426525056,1782535766000,-216.51184279,0.00014498,2]
[426525060,1782535766000,-1320.42,0.00014999,2]
[426525057,1782535766000,-173.84725224,0.00014826,2]
[426525059,1782535766000,-1421.21,0.00014999,2]
[426525061,1782535766000,-185.72038273,0.00014999,2]
[426525058,1782535766000,-500.0,0.00014999,2]
[426525088,1782535832000,-150.99,0.00024174,2]
[426525087,1782535832000,-1671.68475686,0.000239,2]
[426525085,1782535832000,-500.0,0.0002359,2]